[Event "Late-Titled-Tuesday-Blitz-February-27-2024"]
[Site "Chess.com"]
[Date "2024.02.27"]
[Round "1"]
[White "giovannibrandao7"]
[Black "RandomNoob04"]
[Result "1-0"]
[WhiteElo "2233"]
[BlackElo "2571"]
[TimeControl "180+1"]
[EndTime "14:08:27 PST"]
[Termination "giovannibrandao7 won by resignation"]

1. e4 {[%clk 0:03:00.9]} 1... e5 {[%clk 0:02:59.3]} 2. Nf3 {[%clk 0:03:00.9]}
2... Nf6 {[%clk 0:03:00]} 3. d4 {[%clk 0:02:59.6]} 3... Nxe4 {[%clk 0:02:59]} 4.
Bd3 {[%clk 0:02:58.9]} 4... d5 {[%clk 0:02:59.4]} 5. Nxe5 {[%clk 0:02:59.2]}
5... Nd7 {[%clk 0:03:00.1]} 6. Nxd7 {[%clk 0:02:58]} 6... Bxd7 {[%clk 0:03:01]}
7. O-O {[%clk 0:02:57.9]} 7... Bd6 {[%clk 0:03:01.3]} 8. Nd2 {[%clk 0:02:45]}
8... O-O {[%clk 0:02:55.5]} 9. h3 {[%clk 0:02:24.7]} 9... Re8 {[%clk 0:02:39.6]}
10. c4 {[%clk 0:02:12.5]} 10... Qh4 {[%clk 0:01:59.1]} 11. Nf3 {[%clk
0:02:06.8]} 11... Qh5 {[%clk 0:01:57.4]} 12. c5 {[%clk 0:01:23.5]} 12... Bf8
{[%clk 0:01:45.7]} 13. Ne5 {[%clk 0:01:18]} 13... Qxd1 {[%clk 0:01:44.1]} 14.
Rxd1 {[%clk 0:01:17.7]} 14... Nxc5 {[%clk 0:01:45]} 15. a3 {[%clk 0:00:35]}
15... Nxd3 {[%clk 0:01:40.2]} 16. Nxd7 {[%clk 0:00:26.2]} 16... Rad8 {[%clk
0:01:33]} 17. Nxf8 {[%clk 0:00:24.1]} 17... Nxc1 {[%clk 0:01:32.4]} 18. Raxc1
{[%clk 0:00:24.9]} 18... Kxf8 {[%clk 0:01:32]} 19. Rxc7 {[%clk 0:00:25.4]} 19...
Re7 {[%clk 0:01:30.5]} 20. Rdc1 {[%clk 0:00:25]} 20... f6 {[%clk 0:01:18.7]} 21.
Kf1 {[%clk 0:00:21.5]} 21... Rde8 {[%clk 0:01:14.2]} 22. f3 {[%clk 0:00:16.6]}
22... Kf7 {[%clk 0:01:14]} 23. Rxe7+ {[%clk 0:00:16.1]} 23... Rxe7 {[%clk
0:01:14.9]} 24. Kf2 {[%clk 0:00:16.4]} 24... Ke6 {[%clk 0:01:13.9]} 25. g4
{[%clk 0:00:15.3]} 25... Kd6 {[%clk 0:01:14.1]} 26. Rc8 {[%clk 0:00:14.6]} 26...
g6 {[%clk 0:01:11.3]} 27. h4 {[%clk 0:00:10.7]} 27... Kd7 {[%clk 0:01:10.8]} 28.
Rf8 {[%clk 0:00:08.8]} 28... Ke6 {[%clk 0:01:11]} 29. Kg3 {[%clk 0:00:07.9]}
29... Rc7 {[%clk 0:01:11]} 30. Rh8 {[%clk 0:00:06.6]} 30... b6 {[%clk
0:00:53.2]} 31. Re8+ {[%clk 0:00:06.1]} 31... Kf7 {[%clk 0:00:52.9]} 32. Rh8
{[%clk 0:00:06.2]} 32... Kg7 {[%clk 0:00:52.2]} 33. Ra8 {[%clk 0:00:06.7]} 33...
h5 {[%clk 0:00:48]} 34. Rd8 {[%clk 0:00:06.9]} 34... hxg4 {[%clk 0:00:46.6]} 35.
Kxg4 {[%clk 0:00:05.2]} 35... Rc2 {[%clk 0:00:46.2]} 36. Rxd5 {[%clk 0:00:05.3]}
36... Rxb2 {[%clk 0:00:46.4]} 37. Rd7+ {[%clk 0:00:05.9]} 37... Kh6 {[%clk
0:00:46.9]} 38. Rxa7 {[%clk 0:00:06.8]} 38... Rd2 {[%clk 0:00:41.5]} 39. Rd7
{[%clk 0:00:06.8]} 39... Rd3 {[%clk 0:00:41.1]} 40. Rd6 {[%clk 0:00:06.9]} 40...
f5+ {[%clk 0:00:41.4]} 41. Kg3 {[%clk 0:00:07.3]} 41... Rxa3 {[%clk 0:00:34.4]}
42. Rxb6 {[%clk 0:00:07]} 42... Rd3 {[%clk 0:00:35.3]} 43. Rd6 {[%clk
0:00:07.3]} 43... Kh5 {[%clk 0:00:33.1]} 44. Rd8 {[%clk 0:00:06]} 44... Kh6
{[%clk 0:00:29.8]} 45. d5 {[%clk 0:00:06.3]} 45... Rd4 {[%clk 0:00:28.3]} 46. d6
{[%clk 0:00:06.2]} 46... Kg7 {[%clk 0:00:27.1]} 47. d7 {[%clk 0:00:06.5]} 47...
Rd1 {[%clk 0:00:24.7]} 48. Kf4 {[%clk 0:00:02.7]} 48... Rd5 {[%clk 0:00:24.4]}
49. Kg5 {[%clk 0:00:02.3]} 49... Rd4 {[%clk 0:00:24.1]} 50. f4 {[%clk
0:00:01.8]} 50... Rd1 {[%clk 0:00:19.8]} 51. h5 {[%clk 0:00:02.4]} 51... Rg1+
{[%clk 0:00:16.4]} 52. Kh4 {[%clk 0:00:02.9]} 52... Rh1+ {[%clk 0:00:16.4]} 53.
Kg3 {[%clk 0:00:02.9]} 53... Rd1 {[%clk 0:00:16.7]} 54. hxg6 {[%clk 0:00:02.5]}
54... Rd4 {[%clk 0:00:15]} 55. Kh4 {[%clk 0:00:03]} 55... Rxf4+ {[%clk
0:00:12.9]} 56. Kg5 {[%clk 0:00:03.5]} 56... Rd4 {[%clk 0:00:13.6]} 57. Kxf5
{[%clk 0:00:04.1]} 57... Rd5+ {[%clk 0:00:13.9]} 58. Ke6 {[%clk 0:00:04.4]}
58... Rd1 {[%clk 0:00:14.1]} 59. Re8 {[%clk 0:00:04.8]} 59... Re1+ {[%clk
0:00:14.6]} 60. Kd6 {[%clk 0:00:05.4]} 60... Rd1+ {[%clk 0:00:15.5]} 61. Kc6
{[%clk 0:00:05.6]} 61... Rc1+ {[%clk 0:00:15]} 62. Kb5 {[%clk 0:00:06.2]} 62...
Rd1 {[%clk 0:00:15.3]} 63. d8=Q {[%clk 0:00:05.9]} 63... Rxd8 {[%clk 0:00:16.2]}
64. Rxd8 {[%clk 0:00:06.6]} 64... Kxg6 {[%clk 0:00:17.1]} 65. Rd5 {[%clk
0:00:06.8]} 65... Kf6 {[%clk 0:00:18]} 66. Kc6 {[%clk 0:00:07.7]} 66... Ke6
{[%clk 0:00:18.8]} 67. Rd4 {[%clk 0:00:07.5]} 67... Ke7 {[%clk 0:00:19.7]} 68.
Re4+ {[%clk 0:00:06.6]} 68... Kf6 {[%clk 0:00:20.6]} 69. Kd5 {[%clk 0:00:07]}
69... Kf5 {[%clk 0:00:21.5]} 70. Rd4 {[%clk 0:00:06.8]} 70... Kf6 {[%clk
0:00:22.4]} 71. Rf4+ {[%clk 0:00:07.1]} 71... Kg5 {[%clk 0:00:22.7]} 72. Ke5
{[%clk 0:00:07.6]} 72... Kg6 {[%clk 0:00:23.6]} 73. Rf5 {[%clk 0:00:07.8]} 73...
Kg7 {[%clk 0:00:23.9]} 74. Rf6 {[%clk 0:00:08.2]} 74... Kg8 {[%clk 0:00:24.3]}
75. Kf5 {[%clk 0:00:08.8]} 75... Kg7 {[%clk 0:00:25.2]} 76. Kg5 {[%clk
0:00:09.2]} 76... Kg8 {[%clk 0:00:25.5]} 77. Kg6 {[%clk 0:00:09.6]} 1-0

[Event "Late-Titled-Tuesday-Blitz-February-27-2024"]
[Site "Chess.com"]
[Date "2024.02.27"]
[Round "1"]
[White "katharinareinecke"]
[Black "guillembaches"]
[Result "0-1"]
[WhiteElo "2011"]
[BlackElo "2535"]
[TimeControl "180+1"]
[EndTime "14:08:27 PST"]
[Termination "guillembaches won by resignation"]

1. e4 {[%clk 0:02:58.6]} 1... d5 {[%clk 0:02:59.4]} 2. exd5 {[%clk 0:02:56.3]}
2... Qxd5 {[%clk 0:03:00.3]} 3. Nc3 {[%clk 0:02:56.2]} 3... Qa5 {[%clk
0:03:00.3]} 4. d3 {[%clk 0:02:54.6]} 4... Nf6 {[%clk 0:02:55.3]} 5. Bd2 {[%clk
0:02:53.3]} 5... c6 {[%clk 0:02:54.5]} 6. g3 {[%clk 0:02:50.9]} 6... Bg4 {[%clk
0:02:52.6]} 7. f3 {[%clk 0:02:35.9]} 7... Bh5 {[%clk 0:02:51.4]} 8. Bg2 {[%clk
0:02:35.2]} 8... e6 {[%clk 0:02:47.6]} 9. Nge2 {[%clk 0:02:28.3]} 9... Qb6
{[%clk 0:02:47.5]} 10. Nf4 {[%clk 0:02:22.9]} 10... Bg6 {[%clk 0:02:44.2]} 11.
Qe2 {[%clk 0:02:02.1]} 11... Nbd7 {[%clk 0:02:29.5]} 12. b3 {[%clk 0:01:42.3]}
12... Bb4 {[%clk 0:02:23.1]} 13. a3 {[%clk 0:01:34.7]} 13... Bd6 {[%clk
0:02:16.4]} 14. Be3 {[%clk 0:01:15.7]} 14... Qa5 {[%clk 0:02:01.8]} 15. Qd2
{[%clk 0:01:02.4]} 15... O-O {[%clk 0:01:52.8]} 16. O-O {[%clk 0:01:01.1]} 16...
e5 {[%clk 0:01:45]} 17. Nxg6 {[%clk 0:00:59.5]} 17... hxg6 {[%clk 0:01:45.5]}
18. b4 {[%clk 0:00:58]} 18... Qc7 {[%clk 0:01:45]} 19. Ne4 {[%clk 0:00:55.5]}
19... Be7 {[%clk 0:01:41.1]} 20. Rae1 {[%clk 0:00:46.7]} 20... Nd5 {[%clk
0:01:37.8]} 21. Bg5 {[%clk 0:00:38.6]} 21... f6 {[%clk 0:01:33.7]} 22. Be3
{[%clk 0:00:35.5]} 22... Nxe3 {[%clk 0:01:32.4]} 23. Qxe3 {[%clk 0:00:34.6]}
23... a5 {[%clk 0:01:29.4]} 24. c3 {[%clk 0:00:31.7]} 24... axb4 {[%clk
0:01:23.9]} 25. axb4 {[%clk 0:00:31.7]} 25... Rad8 {[%clk 0:01:20.5]} 26. f4
{[%clk 0:00:19.5]} 26... Rfe8 {[%clk 0:01:15.7]} 27. fxe5 {[%clk 0:00:18.3]}
27... Nxe5 {[%clk 0:01:15.8]} 28. Rd1 {[%clk 0:00:14.8]} 28... Bf8 {[%clk
0:01:09.6]} 29. Qf4 {[%clk 0:00:13.1]} 29... Bd6 {[%clk 0:01:00.9]} 30. Qh4
{[%clk 0:00:12.1]} 30... Be7 {[%clk 0:00:52]} 31. Qh3 {[%clk 0:00:10.8]} 31...
Qd7 {[%clk 0:00:49.1]} 32. Qxd7 {[%clk 0:00:09.3]} 32... Rxd7 {[%clk 0:00:49.5]}
33. d4 {[%clk 0:00:09.6]} 33... Nc4 {[%clk 0:00:49.2]} 34. Nc5 {[%clk
0:00:09.6]} 34... Bxc5 {[%clk 0:00:47.8]} 35. bxc5 {[%clk 0:00:07.5]} 35... Re3
{[%clk 0:00:41.3]} 36. Rde1 {[%clk 0:00:07.2]} 36... Rde7 {[%clk 0:00:40.2]} 37.
Rxe3 {[%clk 0:00:06.4]} 37... Nxe3 {[%clk 0:00:39]} 38. Re1 {[%clk 0:00:05.5]}
38... Kf7 {[%clk 0:00:39.4]} 39. Kf2 {[%clk 0:00:05.1]} 39... Ng4+ {[%clk
0:00:38.3]} 40. Kf1 {[%clk 0:00:05.1]} 40... Nxh2+ {[%clk 0:00:38.3]} 41. Kf2
{[%clk 0:00:05.5]} 41... Ng4+ {[%clk 0:00:38.5]} 42. Kf1 {[%clk 0:00:05.8]}
42... Ne3+ {[%clk 0:00:38.4]} 43. Kf2 {[%clk 0:00:06]} 43... Nxg2 {[%clk
0:00:38.2]} 44. Rxe7+ {[%clk 0:00:05.9]} 44... Kxe7 {[%clk 0:00:38.5]} 45. Kxg2
{[%clk 0:00:06.4]} 45... Ke6 {[%clk 0:00:38.6]} 46. Kf3 {[%clk 0:00:06.7]} 46...
g5 {[%clk 0:00:34]} 47. c4 {[%clk 0:00:06.4]} 47... g6 {[%clk 0:00:33.6]} 48.
Ke4 {[%clk 0:00:06.2]} 48... f5+ {[%clk 0:00:32.6]} 49. Ke3 {[%clk 0:00:06.3]}
49... Kf6 {[%clk 0:00:31.5]} 50. Kf3 {[%clk 0:00:06.2]} 50... g4+ {[%clk
0:00:30.8]} 51. Kf4 {[%clk 0:00:06]} 51... g5+ {[%clk 0:00:31.2]} 52. Ke3 {[%clk
0:00:06.2]} 52... Ke6 {[%clk 0:00:31.8]} 53. Kd3 {[%clk 0:00:04.1]} 53... f4
{[%clk 0:00:31.4]} 54. gxf4 {[%clk 0:00:03.4]} 54... gxf4 {[%clk 0:00:31.8]} 55.
Ke4 {[%clk 0:00:03.8]} 55... g3 {[%clk 0:00:29.8]} 56. d5+ {[%clk 0:00:02.8]}
56... cxd5+ {[%clk 0:00:21.5]} 57. cxd5+ {[%clk 0:00:03.1]} 57... Kf6 {[%clk
0:00:20.5]} 58. c6 {[%clk 0:00:02.5]} 58... bxc6 {[%clk 0:00:20]} 59. dxc6
{[%clk 0:00:02.8]} 59... Ke6 {[%clk 0:00:20.3]} 60. Kxf4 {[%clk 0:00:03]} 60...
g2 {[%clk 0:00:19.4]} 61. c7 {[%clk 0:00:03.4]} 61... Kd7 {[%clk 0:00:19.6]} 62.
Kf3 {[%clk 0:00:03.1]} 62... g1=Q {[%clk 0:00:19.7]} 63. c8=Q+ {[%clk
0:00:02.5]} 63... Kxc8 {[%clk 0:00:19.7]} 0-1

[Event "Late-Titled-Tuesday-Blitz-February-27-2024"]
[Site "Chess.com"]
[Date "2024.02.27"]
[Round "1"]
[White "IM_Tissir"]
[Black "rasmussvane"]
[Result "0-1"]
[WhiteElo "2501"]
[BlackElo "2940"]
[TimeControl "180+1"]
[EndTime "14:08:30 PST"]
[Termination "rasmussvane won by resignation"]

1. e4 {[%clk 0:02:58.6]} 1... c6 {[%clk 0:02:58.1]} 2. d4 {[%clk 0:02:58.2]}
2... d5 {[%clk 0:02:58.3]} 3. Nc3 {[%clk 0:02:59.1]} 3... dxe4 {[%clk
0:02:57.2]} 4. Nxe4 {[%clk 0:03:00]} 4... Nf6 {[%clk 0:02:57.3]} 5. Nxf6+ {[%clk
0:03:00.4]} 5... exf6 {[%clk 0:02:58.2]} 6. c3 {[%clk 0:03:00.9]} 6... Bd6
{[%clk 0:02:57.6]} 7. Bd3 {[%clk 0:03:01]} 7... O-O {[%clk 0:02:57.1]} 8. Ne2
{[%clk 0:03:01.5]} 8... Re8 {[%clk 0:02:56.1]} 9. Qc2 {[%clk 0:03:01.9]} 9... h6
{[%clk 0:02:55.8]} 10. O-O {[%clk 0:03:00.7]} 10... Qc7 {[%clk 0:02:48.6]} 11.
Ng3 {[%clk 0:03:00.7]} 11... Nd7 {[%clk 0:02:44.8]} 12. Bd2 {[%clk 0:02:56.8]}
12... Nf8 {[%clk 0:02:43]} 13. Rae1 {[%clk 0:02:57.1]} 13... Bd7 {[%clk
0:02:34.9]} 14. Qd1 {[%clk 0:02:55.7]} 14... Bf4 {[%clk 0:02:22.3]} 15. Be3
{[%clk 0:02:43.8]} 15... Rad8 {[%clk 0:02:20]} 16. Qf3 {[%clk 0:02:43]} 16...
Bxe3 {[%clk 0:02:17.4]} 17. fxe3 {[%clk 0:02:43.9]} 17... Ne6 {[%clk 0:02:00.6]}
18. h4 {[%clk 0:02:38.8]} 18... Nf8 {[%clk 0:01:40.6]} 19. Bf5 {[%clk
0:02:31.5]} 19... Qd6 {[%clk 0:01:31.8]} 20. e4 {[%clk 0:02:28.7]} 20... g6
{[%clk 0:01:13.1]} 21. Bxd7 {[%clk 0:02:25.4]} 21... Nxd7 {[%clk 0:01:14]} 22.
e5 {[%clk 0:02:24.5]} 22... Qe6 {[%clk 0:01:09.4]} 23. exf6 {[%clk 0:02:14.3]}
23... Qxe1 {[%clk 0:01:05.7]} 24. Rxe1 {[%clk 0:02:14.2]} 24... Rxe1+ {[%clk
0:01:06.6]} 25. Kh2 {[%clk 0:02:10.7]} 25... Re6 {[%clk 0:01:06.3]} 26. Ne4
{[%clk 0:01:00.9]} 26... Rde8 {[%clk 0:01:03.7]} 27. Nc5 {[%clk 0:00:58.1]}
27... Rxf6 {[%clk 0:00:52.3]} 28. Qg4 {[%clk 0:00:56.1]} 28... Nxc5 {[%clk
0:00:52.3]} 29. dxc5 {[%clk 0:00:56]} 29... Rf5 {[%clk 0:00:47.7]} 30. b4 {[%clk
0:00:55.4]} 30... h5 {[%clk 0:00:42.8]} 31. Qd4 {[%clk 0:00:50.2]} 31... Rd5
{[%clk 0:00:30.8]} 32. Qf2 {[%clk 0:00:46.3]} 32... Re4 {[%clk 0:00:28.3]} 33.
Qf6 {[%clk 0:00:32.2]} 33... Rd3 {[%clk 0:00:24.3]} 34. a4 {[%clk 0:00:28.7]}
34... Re6 {[%clk 0:00:20.8]} 35. Qf4 {[%clk 0:00:26.5]} 35... Re7 {[%clk
0:00:16.1]} 36. c4 {[%clk 0:00:23]} 36... Red7 {[%clk 0:00:15.8]} 37. b5 {[%clk
0:00:22.9]} 37... R3d4 {[%clk 0:00:15.3]} 38. Qf6 {[%clk 0:00:21.3]} 38... Rxc4
{[%clk 0:00:14]} 39. bxc6 {[%clk 0:00:20.2]} 39... bxc6 {[%clk 0:00:14.9]} 40.
Qxc6 {[%clk 0:00:19.3]} 40... Rd2 {[%clk 0:00:10.8]} 41. Qe8+ {[%clk 0:00:09.9]}
41... Kg7 {[%clk 0:00:10.3]} 42. Qe5+ {[%clk 0:00:10]} 42... Kh7 {[%clk
0:00:10]} 43. Qe7 {[%clk 0:00:07.9]} 43... Rf2 {[%clk 0:00:05.6]} 44. Kg3 {[%clk
0:00:08.2]} 44... Rf5 {[%clk 0:00:05.2]} 45. Qxa7 {[%clk 0:00:06.9]} 45... Rcxc5
{[%clk 0:00:05.7]} 46. a5 {[%clk 0:00:06.7]} 46... Rxa5 {[%clk 0:00:06.1]} 47.
Qe7 {[%clk 0:00:06.8]} 47... Ra4 {[%clk 0:00:06.2]} 48. Kh3 {[%clk 0:00:06.3]}
48... Raf4 {[%clk 0:00:05.8]} 49. g3 {[%clk 0:00:06.2]} 49... Rf3 {[%clk
0:00:05.6]} 50. Qf8 {[%clk 0:00:07.1]} 50... Rd3 {[%clk 0:00:05.7]} 51. Kg2
{[%clk 0:00:06.8]} 51... Rd7 {[%clk 0:00:05]} 52. Kh3 {[%clk 0:00:07.7]} 52...
Rc7 {[%clk 0:00:04.9]} 53. Kh2 {[%clk 0:00:07.9]} 53... Rf6 {[%clk 0:00:04.4]}
54. Kh3 {[%clk 0:00:08.8]} 54... Re6 {[%clk 0:00:04.9]} 55. Kh2 {[%clk
0:00:09.4]} 55... Rce7 {[%clk 0:00:05.2]} 56. Kh3 {[%clk 0:00:10.3]} 56... Rd7
{[%clk 0:00:05.3]} 57. Kh2 {[%clk 0:00:10.8]} 57... Re5 {[%clk 0:00:05.9]} 58.
Kh3 {[%clk 0:00:11.7]} 58... Re2 {[%clk 0:00:06.1]} 59. Qc5 {[%clk 0:00:09.5]}
59... Rdd2 {[%clk 0:00:05.8]} 60. g4 {[%clk 0:00:08.3]} 60... Rd3+ {[%clk
0:00:05.6]} 0-1

[Event "Late-Titled-Tuesday-Blitz-February-27-2024"]
[Site "Chess.com"]
[Date "2024.02.27"]
[Round "1"]
[White "Vasily85"]
[Black "YQPerez"]
[Result "1-0"]
[WhiteElo "2487"]
[BlackElo "2835"]
[TimeControl "180+1"]
[EndTime "14:08:31 PST"]
[Termination "Vasily85 won by resignation"]

1. e4 {[%clk 0:02:47.1]} 1... d5 {[%clk 0:02:59.3]} 2. exd5 {[%clk 0:02:45.3]}
2... Nf6 {[%clk 0:02:59.6]} 3. Bb5+ {[%clk 0:02:42.6]} 3... Bd7 {[%clk 0:03:00]}
4. Bc4 {[%clk 0:02:41.6]} 4... Bg4 {[%clk 0:02:56.3]} 5. Nf3 {[%clk 0:02:35]}
5... Nxd5 {[%clk 0:02:55.2]} 6. h3 {[%clk 0:02:34.9]} 6... Bh5 {[%clk
0:02:53.3]} 7. O-O {[%clk 0:02:33.7]} 7... e6 {[%clk 0:02:52.8]} 8. d4 {[%clk
0:02:33.4]} 8... Be7 {[%clk 0:02:44.9]} 9. Re1 {[%clk 0:02:30.4]} 9... O-O
{[%clk 0:02:43.9]} 10. Be2 {[%clk 0:02:23.4]} 10... Nc6 {[%clk 0:02:31]} 11. c3
{[%clk 0:02:18.2]} 11... Re8 {[%clk 0:02:16.6]} 12. Nbd2 {[%clk 0:02:16.7]}
12... Nf4 {[%clk 0:02:16]} 13. Bf1 {[%clk 0:02:10.1]} 13... e5 {[%clk
0:01:45.8]} 14. dxe5 {[%clk 0:02:00.3]} 14... Nd3 {[%clk 0:01:44.2]} 15. Bxd3
{[%clk 0:01:50.7]} 15... Qxd3 {[%clk 0:01:45.1]} 16. Qe2 {[%clk 0:01:50.8]}
16... Qxe2 {[%clk 0:01:37.5]} 17. Rxe2 {[%clk 0:01:51.7]} 17... Bf8 {[%clk
0:01:35.7]} 18. g4 {[%clk 0:01:50.4]} 18... Bg6 {[%clk 0:01:35.9]} 19. Nb3
{[%clk 0:01:23.8]} 19... f6 {[%clk 0:01:30.9]} 20. Bf4 {[%clk 0:01:16]} 20...
Bf7 {[%clk 0:01:00.8]} 21. Rae1 {[%clk 0:01:15.4]} 21... Bd5 {[%clk 0:01:00.6]}
22. Nbd4 {[%clk 0:01:05.9]} 22... Nxe5 {[%clk 0:00:55.1]} 23. Nxe5 {[%clk
0:01:05.1]} 23... fxe5 {[%clk 0:00:55.5]} 24. Bxe5 {[%clk 0:01:02.5]} 24... c6
{[%clk 0:00:34.7]} 25. b3 {[%clk 0:01:00.9]} 25... a5 {[%clk 0:00:32.3]} 26. Bc7
{[%clk 0:00:52.5]} 26... Rxe2 {[%clk 0:00:31.2]} 27. Rxe2 {[%clk 0:00:53.4]}
27... a4 {[%clk 0:00:31.3]} 28. Kh2 {[%clk 0:00:36.8]} 28... a3 {[%clk
0:00:29.5]} 29. c4 {[%clk 0:00:32.9]} 29... Bf7 {[%clk 0:00:29.4]} 30. Nf5
{[%clk 0:00:32.2]} 30... Bg6 {[%clk 0:00:25.3]} 31. Ne7+ {[%clk 0:00:24.3]}
31... Bxe7 {[%clk 0:00:24.4]} 32. Rxe7 {[%clk 0:00:25.2]} 32... Bb1 {[%clk
0:00:24.1]} 33. Re2 {[%clk 0:00:25.8]} 33... Kf7 {[%clk 0:00:19.2]} 34. Bd6
{[%clk 0:00:22.7]} 34... b6 {[%clk 0:00:19]} 35. Re7+ {[%clk 0:00:17.4]} 35...
Kf6 {[%clk 0:00:17.7]} 36. Re2 {[%clk 0:00:16.8]} 36... c5 {[%clk 0:00:17.1]}
37. f4 {[%clk 0:00:16.1]} 37... h6 {[%clk 0:00:14.3]} 38. Kg3 {[%clk 0:00:15.9]}
38... Kf7 {[%clk 0:00:12.8]} 39. h4 {[%clk 0:00:15.6]} 39... Ra7 {[%clk
0:00:09.6]} 40. b4 {[%clk 0:00:11]} 40... cxb4 {[%clk 0:00:07.3]} 41. Bxb4
{[%clk 0:00:11.9]} 41... Ra4 {[%clk 0:00:07.7]} 42. Bd6 {[%clk 0:00:11.2]} 42...
Rxc4 {[%clk 0:00:08.3]} 43. Re7+ {[%clk 0:00:09.5]} 43... Kf6 {[%clk 0:00:08.1]}
44. Re3 {[%clk 0:00:07.9]} 44... Bxa2 {[%clk 0:00:05.9]} 45. Rxa3 {[%clk
0:00:07.2]} 45... Bb1 {[%clk 0:00:05.9]} 46. Rb3 {[%clk 0:00:07.1]} 46... Rc6
{[%clk 0:00:05.7]} 47. Be5+ {[%clk 0:00:06.1]} 47... Kf7 {[%clk 0:00:06.1]} 48.
Rxb1 {[%clk 0:00:06.9]} 48... g6 {[%clk 0:00:05.1]} 49. Rd1 {[%clk 0:00:06.8]}
49... Ke6 {[%clk 0:00:05.5]} 50. Rd8 {[%clk 0:00:06.9]} 50... b5 {[%clk
0:00:06.1]} 51. Rb8 {[%clk 0:00:06.9]} 51... Rc5 {[%clk 0:00:06.9]} 52. Rb6+
{[%clk 0:00:07.1]} 52... Kd5 {[%clk 0:00:06.2]} 53. Rxg6 {[%clk 0:00:07.5]}
53... b4 {[%clk 0:00:06.6]} 54. Rb6 {[%clk 0:00:07.3]} 54... Kc4 {[%clk
0:00:07.3]} 55. g5 {[%clk 0:00:07.4]} 55... hxg5 {[%clk 0:00:07.1]} 56. hxg5
{[%clk 0:00:08.3]} 56... b3 {[%clk 0:00:07.7]} 57. g6 {[%clk 0:00:08]} 57... Rc8
{[%clk 0:00:07.7]} 58. g7 {[%clk 0:00:07.9]} 58... Kc5 {[%clk 0:00:08.6]} 59.
Rb7 {[%clk 0:00:07.2]} 59... Kc4 {[%clk 0:00:08.6]} 60. Kg4 {[%clk 0:00:07.5]}
60... Kd3 {[%clk 0:00:08.3]} 61. Rxb3+ {[%clk 0:00:06.9]} 61... Ke4 {[%clk
0:00:09.2]} 62. Rb8 {[%clk 0:00:07.7]} 62... Rd8 {[%clk 0:00:08.8]} 63. g8=Q
{[%clk 0:00:06.2]} 63... Rd3 {[%clk 0:00:06.8]} 64. Qc4+ {[%clk 0:00:05.6]}
64... Ke3 {[%clk 0:00:07.7]} 65. Rb3 {[%clk 0:00:04.4]} 65... Kf2 {[%clk
0:00:07.6]} 66. Rxd3 {[%clk 0:00:03.9]} 1-0